[Event "November 21 Early 2023"]
[Site "https://www.chess.com"]
[Date "2023.11.21"]
[Round "5"]
[White "udithj22"]
[Black "Mystery2007"]
[Result "0-1"]
[Board "206"]
[TimeControl "180+1"]
[WhiteElo "2104"]
[BlackElo "2501"]
[WhiteClock "0:00:14"]
[BlackClock "0:00:09"]

1. d4 {[%clk 0:01:42]}  g6 {[%clk 0:03:00]} 2. e4 {[%clk 0:01:40]}  Bg7 {[%clk 0:03:00]} 3. Nc3 {[%clk 0:01:39]}  d6 {[%clk 0:03:00]} 4. Be3 {[%clk 0:01:38]}  Nf6 {[%clk 0:03:00]} 5. f3 {[%clk 0:01:38]}  O-O {[%clk 0:03:00]} 6. Qd2 {[%clk 0:01:38]}  c6 {[%clk 0:02:59]} 7. O-O-O {[%clk 0:01:38]}  b5 {[%clk 0:03:00]} 8. Kb1 {[%clk 0:01:38]}  b4 {[%clk 0:03:00]} 9. Nce2 {[%clk 0:01:38]}  a5 {[%clk 0:03:00]} 10. Bh6 {[%clk 0:01:34]}  Qc7 {[%clk 0:02:50]} 11. h4 {[%clk 0:01:34]}  e5 {[%clk 0:02:34]} 12. g4 {[%clk 0:01:12]}  Be6 {[%clk 0:02:06]} 13. h5 {[%clk 0:00:58]}  Na6 {[%clk 0:01:25]} 14. hxg6 {[%clk 0:00:32]}  fxg6 {[%clk 0:01:24]} 15. Bxg7 {[%clk 0:00:32]}  Qxg7 {[%clk 0:01:24]} 16. dxe5 {[%clk 0:00:32]}  dxe5 {[%clk 0:01:24]} 17. Qd6 {[%clk 0:00:30]}  Bf7 {[%clk 0:01:08]} 18. Nc1 {[%clk 0:00:29]}  Ra7 {[%clk 0:00:47]} 19. Qxe5 {[%clk 0:00:27]}  Re8 {[%clk 0:00:44]} 20. Qf4 {[%clk 0:00:20]}  Nc5 {[%clk 0:00:43]} 21. Qe3 {[%clk 0:00:20]}  Na4 {[%clk 0:00:39]} 22. g5 {[%clk 0:00:19]}  Nd5 {[%clk 0:00:32]} 23. Qd4 {[%clk 0:00:18]}  Ndc3+ {[%clk 0:00:19]} 24. bxc3 {[%clk 0:00:18]}  Nxc3+ {[%clk 0:00:20]} 25. Ka1 {[%clk 0:00:17]}  Nxd1 {[%clk 0:00:20]} 26. Qxg7+ {[%clk 0:00:17]}  Kxg7 {[%clk 0:00:21]} 27. Bd3 {[%clk 0:00:16]}  Nf2 {[%clk 0:00:20]} 28. Rh2 {[%clk 0:00:16]}  Nxd3 {[%clk 0:00:19]} 29. Nxd3 {[%clk 0:00:17]}  Rd7 {[%clk 0:00:17]} 30. Ne2 {[%clk 0:00:16]}  Bc4 {[%clk 0:00:17]} 31. Nef4 {[%clk 0:00:15]}  Bxd3 {[%clk 0:00:17]} 32. cxd3 {[%clk 0:00:16]}  Re5 {[%clk 0:00:10]} 33. Rh4 {[%clk 0:00:16]}  Kg8 {[%clk 0:00:09]} 34. Rg4 {[%clk 0:00:16]}  Rf7 {[%clk 0:00:08]} 35. Kb2 {[%clk 0:00:15]}  Rc5 {[%clk 0:00:08]} 36. d4 {[%clk 0:00:15]}  Rc3 {[%clk 0:00:08]} 37. d5 {[%clk 0:00:14]}  cxd5 {[%clk 0:00:08]} 38. Nxd5 {[%clk 0:00:15]}  Rcxf3 {[%clk 0:00:08]} 39. Nf6+ {[%clk 0:00:15]}  Kg7 {[%clk 0:00:09]} 40. e5 {[%clk 0:00:15]}  Re3 {[%clk 0:00:08]} 41. Rh4 {[%clk 0:00:16]}  Kf8 {[%clk 0:00:08]} 42. Nxh7+ {[%clk 0:00:16]}  Ke7 {[%clk 0:00:08]} 43. Nf6 {[%clk 0:00:16]}  Rxe5 {[%clk 0:00:08]} 44. Rd4 {[%clk 0:00:16]}  Rxf6 {[%clk 0:00:06]} 45. gxf6+ {[%clk 0:00:16]}  Kxf6 {[%clk 0:00:07]} 46. Rd6+ {[%clk 0:00:16]}  Kf5 {[%clk 0:00:08]} 47. a3 {[%clk 0:00:17]}  bxa3+ {[%clk 0:00:06]} 48. Kxa3 {[%clk 0:00:18]}  g5 {[%clk 0:00:07]} 49. Rd8 {[%clk 0:00:17]}  g4 {[%clk 0:00:07]} 50. Rf8+ {[%clk 0:00:17]}  Ke4 {[%clk 0:00:08]} 51. Rg8 {[%clk 0:00:17]}  Kf3 {[%clk 0:00:08]} 52. Kb3 {[%clk 0:00:17]}  g3 {[%clk 0:00:08]} 53. Kc3 {[%clk 0:00:18]}  Rd5 {[%clk 0:00:07]} 54. Rg6 {[%clk 0:00:16]}  g2 {[%clk 0:00:07]} 55. Rg7 {[%clk 0:00:17]}  Kf2 {[%clk 0:00:07]} 56. Rf7+ {[%clk 0:00:16]}  Ke1 {[%clk 0:00:07]} 57. Rg7 {[%clk 0:00:17]}  Kf1 {[%clk 0:00:06]} 58. Rf7+ {[%clk 0:00:17]}  Kg1 {[%clk 0:00:07]} 59. Rg7 {[%clk 0:00:18]}  a4 {[%clk 0:00:06]} 60. Kb4 {[%clk 0:00:18]}  Rd4+ {[%clk 0:00:07]} 61. Kc3 {[%clk 0:00:18]}  Rf4 {[%clk 0:00:07]} 62. Rg6 {[%clk 0:00:17]}  Kf1 {[%clk 0:00:08]} 63. Rg5 {[%clk 0:00:16]}  g1=Q {[%clk 0:00:08]} 64. Rxg1+ {[%clk 0:00:14]}  Kxg1 {[%clk 0:00:09]} 0-1

[Event "November 21 Early 2023"]
[Site "https://www.chess.com"]
[Date "2023.11.21"]
[Round "5"]
[White "Nikulina, Alena"]
[Black "Ongut, Tamas Gunes"]
[Result "0-1"]
[Board "208"]
[TimeControl "180+1"]
[WhiteFideId "4172051"]
[BlackFideId "770280"]
[WhiteElo "1627"]
[BlackElo "2148"]
[WhiteTeam "RUS"]
[BlackTeam "HUN"]
[WhiteClock "0:00:18"]
[BlackClock "0:00:15"]

1. e4 {[%clk 0:01:42]}  d5 {[%clk 0:02:56]} 2. exd5 {[%clk 0:01:42]}  Qxd5 {[%clk 0:02:57]} 3. Nc3 {[%clk 0:01:42]}  Qa5 {[%clk 0:02:57]} 4. d4 {[%clk 0:01:42]}  Nc6 {[%clk 0:02:57]} 5. Nf3 {[%clk 0:01:42]}  Bg4 {[%clk 0:02:57]} 6. h3 {[%clk 0:01:42]}  Bxf3 {[%clk 0:02:57]} 7. Qxf3 {[%clk 0:01:32]}  O-O-O {[%clk 0:02:57]} 8. Bd3 {[%clk 0:01:20]}  Nxd4 {[%clk 0:02:54]} 9. Qxf7 {[%clk 0:01:18]}  Nf6 {[%clk 0:02:55]} 10. O-O {[%clk 0:01:16]}  e5 {[%clk 0:02:48]} 11. Bg5 {[%clk 0:01:04]}  Qb6 {[%clk 0:02:36]} 12. Bxf6 {[%clk 0:00:57]}  gxf6 {[%clk 0:02:36]} 13. Nd5 {[%clk 0:00:56]}  Qd6 {[%clk 0:02:29]} 14. Nxf6 {[%clk 0:00:54]}  Bh6 {[%clk 0:02:17]} 15. Ne4 {[%clk 0:00:50]}  Qc6 {[%clk 0:02:14]} 16. Qh5 {[%clk 0:00:43]}  Rhg8 {[%clk 0:02:13]} 17. c3 {[%clk 0:00:39]}  Nb3 {[%clk 0:01:37]} 18. axb3 {[%clk 0:00:34]}  Rxd3 {[%clk 0:01:37]} 19. Ng3 {[%clk 0:00:35]}  Bf4 {[%clk 0:01:28]} 20. Rxa7 {[%clk 0:00:32]}  Kb8 {[%clk 0:01:25]} 21. Rfa1 {[%clk 0:00:31]}  b6 {[%clk 0:01:20]} 22. Qxh7 {[%clk 0:00:29]}  Rgd8 {[%clk 0:01:11]} 23. Ra8+ {[%clk 0:00:29]}  Qxa8 {[%clk 0:01:09]} 24. Rxa8+ {[%clk 0:00:29]}  Kxa8 {[%clk 0:01:10]} 25. Qxc7 {[%clk 0:00:30]}  Rd1+ {[%clk 0:01:03]} 26. Kh2 {[%clk 0:00:30]}  R8d6 {[%clk 0:01:00]} 27. Qc8+ {[%clk 0:00:30]}  Ka7 {[%clk 0:01:00]} 28. Qc4 {[%clk 0:00:30]}  R1d2 {[%clk 0:00:59]} 29. Qa4+ {[%clk 0:00:30]}  Kb7 {[%clk 0:00:59]} 30. Qe4+ {[%clk 0:00:30]}  Ka7 {[%clk 0:00:58]} 31. c4 {[%clk 0:00:31]}  Rxf2 {[%clk 0:00:57]} 32. Qh7+ {[%clk 0:00:30]}  Ka6 {[%clk 0:00:56]} 33. Qc7 {[%clk 0:00:29]}  Rd3 {[%clk 0:00:49]} 34. Qc8+ {[%clk 0:00:27]}  Ka5 {[%clk 0:00:49]} 35. Qa8+ {[%clk 0:00:26]}  Kb4 {[%clk 0:00:49]} 36. Qf8+ {[%clk 0:00:26]}  Kxb3 {[%clk 0:00:48]} 37. Qa3+ {[%clk 0:00:23]}  Kc2 {[%clk 0:00:48]} 38. Qa4+ {[%clk 0:00:23]}  Kxb2 {[%clk 0:00:47]} 39. Qb4+ {[%clk 0:00:23]}  Kc1 {[%clk 0:00:45]} 40. Qe1+ {[%clk 0:00:21]}  Rd1 {[%clk 0:00:28]} 41. Qxf2 {[%clk 0:00:21]}  Rd3 {[%clk 0:00:29]} 42. Qe1+ {[%clk 0:00:20]}  Kc2 {[%clk 0:00:29]} 43. Qe2+ {[%clk 0:00:21]}  Kc3 {[%clk 0:00:28]} 44. Qe1+ {[%clk 0:00:20]}  Kxc4 {[%clk 0:00:28]} 45. h4 {[%clk 0:00:20]}  Kd5 {[%clk 0:00:17]} 46. h5 {[%clk 0:00:21]}  Ke6 {[%clk 0:00:17]} 47. h6 {[%clk 0:00:18]}  Bxg3+ {[%clk 0:00:16]} 48. Qxg3 {[%clk 0:00:18]}  Rxg3 {[%clk 0:00:17]} 49. Kxg3 {[%clk 0:00:19]}  Kf6 {[%clk 0:00:18]} 50. Kf3 {[%clk 0:00:20]}  b5 {[%clk 0:00:18]} 51. Ke4 {[%clk 0:00:20]}  b4 {[%clk 0:00:15]} 52. g4 {[%clk 0:00:20]}  b3 {[%clk 0:00:14]} 53. Kd3 {[%clk 0:00:20]}  e4+ {[%clk 0:00:14]} 54. Kc3 {[%clk 0:00:21]}  e3 {[%clk 0:00:14]} 55. g5+ {[%clk 0:00:22]}  Kg6 {[%clk 0:00:14]} 56. Kxb3 {[%clk 0:00:21]}  e2 {[%clk 0:00:15]} 57. Kc2 {[%clk 0:00:18]}  e1=Q {[%clk 0:00:15]} 0-1

[Event "November 21 Early 2023"]
[Site "https://www.chess.com"]
[Date "2023.11.21"]
[Round "5"]
[White "FunnyDuck66"]
[Black "Samarth J Rao"]
[Result "1-0"]
[Board "209"]
[TimeControl "180+1"]
[BlackFideId "46652370"]
[WhiteElo "2462"]
[BlackElo "1564"]
[BlackTeam "IND"]
[WhiteClock "0:00:04"]
[BlackClock "0:00:00"]

1. d4 {[%clk 0:03:00]}  Nf6 {[%clk 0:02:53]} 2. Nf3 {[%clk 0:02:59]}  e6 {[%clk 0:02:46]} 3. Bg5 {[%clk 0:02:58]}  d5 {[%clk 0:02:44]} 4. Nbd2 {[%clk 0:02:49]}  Nbd7 {[%clk 0:02:43]} 5. e3 {[%clk 0:02:48]}  h6 {[%clk 0:02:40]} 6. Bh4 {[%clk 0:02:40]}  Bd6 {[%clk 0:02:39]} 7. Bd3 {[%clk 0:02:33]}  c5 {[%clk 0:02:38]} 8. c3 {[%clk 0:02:27]}  Qb6 {[%clk 0:02:36]} 9. Rb1 {[%clk 0:02:26]}  e5 {[%clk 0:02:25]} 10. dxe5 {[%clk 0:02:24]}  Bxe5 {[%clk 0:02:25]} 11. Nxe5 {[%clk 0:02:25]}  Nxe5 {[%clk 0:02:25]} 12. Bc2 {[%clk 0:02:17]}  Bg4 {[%clk 0:02:25]} 13. f3 {[%clk 0:02:16]}  Bd7 {[%clk 0:02:22]} 14. O-O {[%clk 0:02:14]}  Bb5 {[%clk 0:02:19]} 15. Ba4 {[%clk 0:01:56]}  g5 {[%clk 0:02:08]} 16. Bg3 {[%clk 0:01:47]}  Nc6 {[%clk 0:02:04]} 17. Bxb5 {[%clk 0:01:41]}  Qxb5 {[%clk 0:02:05]} 18. Qc2 {[%clk 0:01:41]}  Ne7 {[%clk 0:01:45]} 19. c4 {[%clk 0:01:37]}  dxc4 {[%clk 0:01:41]} 20. Nxc4 {[%clk 0:01:37]}  O-O {[%clk 0:01:37]} 21. e4 {[%clk 0:01:26]}  Ng6 {[%clk 0:01:31]} 22. Nd6 {[%clk 0:01:20]}  Qc6 {[%clk 0:01:27]} 23. Qc3 {[%clk 0:01:07]}  Nh5 {[%clk 0:01:24]} 24. Nf5 {[%clk 0:01:05]}  Rad8 {[%clk 0:01:10]} 25. Rbd1 {[%clk 0:00:56]}  b6 {[%clk 0:01:01]} 26. Nxh6+ {[%clk 0:00:52]}  Kh7 {[%clk 0:00:57]} 27. Nf5 {[%clk 0:00:51]}  Qe6 {[%clk 0:00:49]} 28. Bd6 {[%clk 0:00:38]}  Ngf4 {[%clk 0:00:45]} 29. Kh1 {[%clk 0:00:33]}  Rg8 {[%clk 0:00:37]} 30. Bc7 {[%clk 0:00:25]}  Rd7 {[%clk 0:00:28]} 31. Rxd7 {[%clk 0:00:13]}  Qxd7 {[%clk 0:00:29]} 32. Be5 {[%clk 0:00:14]}  Ne2 {[%clk 0:00:24]} 33. Qc4 {[%clk 0:00:10]}  Nef4 {[%clk 0:00:20]} 34. g4 {[%clk 0:00:09]}  f6 {[%clk 0:00:11]} 35. Bc3 {[%clk 0:00:06]}  Ng7 {[%clk 0:00:09]} 36. Ng3 {[%clk 0:00:05]}  Qe7 {[%clk 0:00:07]} 37. Rd1 {[%clk 0:00:04]}  Nge6 {[%clk 0:00:06]} 38. Nf5 {[%clk 0:00:03]}  Qf7 {[%clk 0:00:05]} 39. Qb5 {[%clk 0:00:04]}  Qg6 {[%clk 0:00:02]} 40. Rd7+ {[%clk 0:00:04]}  Kh8 {[%clk 0:00:03]} 41. Qc6 {[%clk 0:00:04]}  Ng7 {[%clk 0:00:00]} 42. Bxf6 {[%clk 0:00:04]} 1-0

[Event "November 21 Early 2023"]
[Site "https://www.chess.com"]
[Date "2023.11.21"]
[Round "5"]
[White "AKINSEYE, Akinleye"]
[Black "Martin, Lewis"]
[Result "0-1"]
[Board "211"]
[TimeControl "180+1"]
[WhiteFideId "8504458"]
[BlackFideId "410551"]
[WhiteElo "1906"]
[BlackElo "2145"]
[WhiteTeam "NGR"]
[BlackTeam "ENG"]
[WhiteClock "0:00:00"]
[BlackClock "0:01:16"]

1. e4 {[%clk 0:02:59]}  c6 {[%clk 0:02:59]} 2. d4 {[%clk 0:02:57]}  d5 {[%clk 0:02:59]} 3. exd5 {[%clk 0:02:54]}  cxd5 {[%clk 0:02:59]} 4. Nf3 {[%clk 0:02:51]}  Nf6 {[%clk 0:02:58]} 5. Bd3 {[%clk 0:02:31]}  Nc6 {[%clk 0:02:57]} 6. c3 {[%clk 0:02:30]}  Bg4 {[%clk 0:02:55]} 7. O-O {[%clk 0:02:26]}  e6 {[%clk 0:02:53]} 8. Bg5 {[%clk 0:02:23]}  Be7 {[%clk 0:02:51]} 9. Nbd2 {[%clk 0:02:22]}  O-O {[%clk 0:02:49]} 10. Qc2 {[%clk 0:02:20]}  h6 {[%clk 0:02:44]} 11. Bh4 {[%clk 0:02:18]}  Bxf3 {[%clk 0:02:44]} 12. Nxf3 {[%clk 0:02:17]}  Rc8 {[%clk 0:02:45]} 13. Qe2 {[%clk 0:02:13]}  Ne8 {[%clk 0:02:38]} 14. Bxe7 {[%clk 0:02:11]}  Qxe7 {[%clk 0:02:31]} 15. Rfe1 {[%clk 0:02:11]}  Nd6 {[%clk 0:02:29]} 16. Ne5 {[%clk 0:02:07]}  g6 {[%clk 0:02:16]} 17. Qg4 {[%clk 0:02:02]}  Nxe5 {[%clk 0:02:15]} 18. Rxe5 {[%clk 0:02:01]}  Qf6 {[%clk 0:02:11]} 19. Rae1 {[%clk 0:01:57]}  Kg7 {[%clk 0:02:06]} 20. h4 {[%clk 0:01:44]}  b5 {[%clk 0:02:00]} 21. a3 {[%clk 0:01:37]}  a5 {[%clk 0:02:00]} 22. h5 {[%clk 0:01:20]}  g5 {[%clk 0:01:55]} 23. Bb1 {[%clk 0:01:17]}  Nc4 {[%clk 0:01:50]} 24. R1e2 {[%clk 0:01:11]}  Nxe5 {[%clk 0:01:43]} 25. dxe5 {[%clk 0:01:08]}  Qf4 {[%clk 0:01:43]} 26. Qxf4 {[%clk 0:00:55]}  gxf4 {[%clk 0:01:43]} 27. f3 {[%clk 0:00:54]}  f6 {[%clk 0:01:41]} 28. exf6+ {[%clk 0:00:44]}  Kxf6 {[%clk 0:01:41]} 29. Kf2 {[%clk 0:00:42]}  b4 {[%clk 0:01:37]} 30. axb4 {[%clk 0:00:42]}  axb4 {[%clk 0:01:38]} 31. cxb4 {[%clk 0:00:41]}  Rb8 {[%clk 0:01:38]} 32. Bd3 {[%clk 0:00:37]}  Rxb4 {[%clk 0:01:37]} 33. g3 {[%clk 0:00:28]}  fxg3+ {[%clk 0:01:37]} 34. Kxg3 {[%clk 0:00:23]}  Rfb8 {[%clk 0:01:36]} 35. Bg6 {[%clk 0:00:21]}  Rxb2 {[%clk 0:01:36]} 36. Re1 {[%clk 0:00:17]}  e5 {[%clk 0:01:25]} 37. Rc1 {[%clk 0:00:15]}  R8b6 {[%clk 0:01:23]} 38. Rc8 {[%clk 0:00:14]}  R6b3 {[%clk 0:01:18]} 39. Rf8+ {[%clk 0:00:00]}  Ke6 {[%clk 0:01:16]} 0-1

[Event "November 21 Early 2023"]
[Site "https://www.chess.com"]
[Date "2023.11.21"]
[Round "5"]
[White "Odeh, Kenneth"]
[Black "Andreassen, Lars"]
[Result "1/2-1/2"]
[Board "213"]
[TimeControl "180+1"]
[WhiteFideId "8500142"]
[BlackFideId "1504878"]
[WhiteElo "2031"]
[BlackElo "2119"]
[WhiteTeam "NGR"]
[BlackTeam "NOR"]
[WhiteClock "0:00:42"]
[BlackClock "0:01:40"]

1. e4 {[%clk 0:03:00]}  d6 {[%clk 0:02:58]} 2. d4 {[%clk 0:02:59]}  Nf6 {[%clk 0:02:59]} 3. Nc3 {[%clk 0:02:59]}  e5 {[%clk 0:02:59]} 4. dxe5 {[%clk 0:02:54]}  dxe5 {[%clk 0:03:00]} 5. Qxd8+ {[%clk 0:02:53]}  Kxd8 {[%clk 0:03:01]} 6. Nf3 {[%clk 0:02:52]}  Bd6 {[%clk 0:02:59]} 7. Bg5 {[%clk 0:02:51]}  Be6 {[%clk 0:02:58]} 8. O-O-O {[%clk 0:02:48]}  Nd7 {[%clk 0:02:59]} 9. Nb5 {[%clk 0:02:45]}  Ke7 {[%clk 0:02:58]} 10. Nxd6 {[%clk 0:02:34]}  cxd6 {[%clk 0:02:59]} 11. Bb5 {[%clk 0:02:32]}  Rhd8 {[%clk 0:02:53]} 12. Bxd7 {[%clk 0:02:24]}  Rxd7 {[%clk 0:02:53]} 13. Rd2 {[%clk 0:02:19]}  Rc8 {[%clk 0:02:50]} 14. Kb1 {[%clk 0:02:15]}  b5 {[%clk 0:02:46]} 15. Rhd1 {[%clk 0:02:14]}  Rc4 {[%clk 0:02:43]} 16. Re2 {[%clk 0:02:05]}  Rdc7 {[%clk 0:02:42]} 17. c3 {[%clk 0:01:57]}  a5 {[%clk 0:02:41]} 18. Nd2 {[%clk 0:01:55]}  R4c5 {[%clk 0:02:40]} 19. f3 {[%clk 0:01:52]}  a4 {[%clk 0:02:39]} 20. a3 {[%clk 0:01:49]}  h6 {[%clk 0:02:39]} 21. Bxf6+ {[%clk 0:01:48]}  gxf6 {[%clk 0:02:39]} 22. Nf1 {[%clk 0:01:46]}  Bc4 {[%clk 0:02:38]} 23. Red2 {[%clk 0:01:44]}  Bxf1 {[%clk 0:02:36]} 24. Rxf1 {[%clk 0:01:43]}  R5c6 {[%clk 0:02:31]} 25. Rd5 {[%clk 0:01:40]}  Rb6 {[%clk 0:02:32]} 26. Rfd1 {[%clk 0:01:39]}  Rc8 {[%clk 0:02:29]} 27. R5d3 {[%clk 0:01:38]}  Rg8 {[%clk 0:02:29]} 28. g4 {[%clk 0:01:36]}  h5 {[%clk 0:02:27]} 29. h3 {[%clk 0:01:31]}  hxg4 {[%clk 0:02:27]} 30. fxg4 {[%clk 0:01:27]}  Rh8 {[%clk 0:02:26]} 31. Rf1 {[%clk 0:01:25]}  Rh6 {[%clk 0:02:24]} 32. Rdf3 {[%clk 0:01:23]}  Ke6 {[%clk 0:02:23]} 33. Rf5 {[%clk 0:01:18]}  d5 {[%clk 0:02:11]} 34. exd5+ {[%clk 0:01:14]}  Kxd5 {[%clk 0:02:11]} 35. h4 {[%clk 0:01:08]}  Rxh4 {[%clk 0:02:09]} 36. Rxf6 {[%clk 0:01:06]}  Rxf6 {[%clk 0:02:08]} 37. Rxf6 {[%clk 0:01:05]}  Rxg4 {[%clk 0:02:08]} 38. Rxf7 {[%clk 0:01:04]}  e4 {[%clk 0:02:08]} 39. Kc2 {[%clk 0:01:01]}  Rg2+ {[%clk 0:02:07]} 40. Kc1 {[%clk 0:01:00]}  Kc4 {[%clk 0:02:08]} 41. Re7 {[%clk 0:00:55]}  Kd3 {[%clk 0:02:06]} 42. Rd7+ {[%clk 0:00:55]}  Ke3 {[%clk 0:02:06]} 43. Rd5 {[%clk 0:00:50]}  Rg1+ {[%clk 0:02:02]} 44. Kc2 {[%clk 0:00:50]}  Rg2+ {[%clk 0:02:03]} 45. Kc1 {[%clk 0:00:50]}  Ke2 {[%clk 0:01:58]} 46. Rxb5 {[%clk 0:00:47]}  e3 {[%clk 0:01:58]} 47. Re5 {[%clk 0:00:45]}  Kd3 {[%clk 0:01:50]} 48. Rd5+ {[%clk 0:00:42]}  Ke2 {[%clk 0:01:46]} 49. Re5 {[%clk 0:00:42]}  Kd3 {[%clk 0:01:40]} 50. Rd5+ {[%clk 0:00:42]}  Ke2 {[%clk 0:01:40]} 51. Re5 {[%clk 0:00:42]} 1/2-1/2

[Event "November 21 Early 2023"]
[Site "https://www.chess.com"]
[Date "2023.11.21"]
[Round "5"]
[White "Novikova, Anna"]
[Black "Gyulamiryan-koryun"]
[Result "1-0"]
[Board "216"]
[TimeControl "180+1"]
[WhiteFideId "4146794"]
[WhiteElo "2110"]
[BlackElo "1898"]
[WhiteTeam "MNE"]
[WhiteClock "0:00:21"]
[BlackClock "0:00:00"]

1. e4 {[%clk 0:03:00]}  e5 {[%clk 0:02:59]} 2. Nf3 {[%clk 0:03:00]}  Nc6 {[%clk 0:02:59]} 3. Bc4 {[%clk 0:03:01]}  Nf6 {[%clk 0:02:57]} 4. Ng5 {[%clk 0:03:00]}  d5 {[%clk 0:02:56]} 5. exd5 {[%clk 0:03:01]}  Na5 {[%clk 0:02:55]} 6. Bb5+ {[%clk 0:03:01]}  c6 {[%clk 0:02:55]} 7. dxc6 {[%clk 0:03:01]}  bxc6 {[%clk 0:02:55]} 8. Qf3 {[%clk 0:03:02]}  Rb8 {[%clk 0:02:53]} 9. Bd3 {[%clk 0:02:35]}  h6 {[%clk 0:02:41]} 10. Ne4 {[%clk 0:02:34]}  Be7 {[%clk 0:02:38]} 11. Nxf6+ {[%clk 0:02:26]}  Bxf6 {[%clk 0:02:37]} 12. Nc3 {[%clk 0:02:27]}  O-O {[%clk 0:02:31]} 13. O-O {[%clk 0:02:27]}  Bb7 {[%clk 0:02:27]} 14. Ne4 {[%clk 0:02:10]}  c5 {[%clk 0:02:09]} 15. Nxf6+ {[%clk 0:02:09]}  Qxf6 {[%clk 0:02:08]} 16. Qxf6 {[%clk 0:02:09]}  gxf6 {[%clk 0:02:08]} 17. b3 {[%clk 0:01:55]}  Nc6 {[%clk 0:01:58]} 18. Bb2 {[%clk 0:01:55]}  Nd4 {[%clk 0:01:56]} 19. Rfe1 {[%clk 0:01:47]}  Kh8 {[%clk 0:01:47]} 20. Bxd4 {[%clk 0:01:23]}  cxd4 {[%clk 0:01:42]} 21. Be4 {[%clk 0:01:23]}  Rg8 {[%clk 0:01:33]} 22. Bxb7 {[%clk 0:01:16]}  Rxb7 {[%clk 0:01:31]} 23. c4 {[%clk 0:01:16]}  dxc3 {[%clk 0:01:24]} 24. dxc3 {[%clk 0:01:17]}  Rd7 {[%clk 0:01:21]} 25. Rad1 {[%clk 0:01:08]}  Rgd8 {[%clk 0:01:19]} 26. Rxd7 {[%clk 0:00:48]}  Rxd7 {[%clk 0:01:17]} 27. c4 {[%clk 0:00:49]}  Rd2 {[%clk 0:01:14]} 28. Rc1 {[%clk 0:00:48]}  Kg8 {[%clk 0:01:06]} 29. c5 {[%clk 0:00:45]}  Kf8 {[%clk 0:01:03]} 30. c6 {[%clk 0:00:43]}  Rd8 {[%clk 0:01:00]} 31. b4 {[%clk 0:00:41]}  a6 {[%clk 0:00:57]} 32. a4 {[%clk 0:00:41]}  Ke7 {[%clk 0:00:55]} 33. b5 {[%clk 0:00:40]}  axb5 {[%clk 0:00:50]} 34. axb5 {[%clk 0:00:41]}  Rb8 {[%clk 0:00:41]} 35. c7 {[%clk 0:00:37]}  Rc8 {[%clk 0:00:38]} 36. b6 {[%clk 0:00:37]}  Kd7 {[%clk 0:00:35]} 37. Kf1 {[%clk 0:00:33]}  f5 {[%clk 0:00:26]} 38. Rd1+ {[%clk 0:00:25]}  Kc6 {[%clk 0:00:24]} 39. Rd8 {[%clk 0:00:26]}  Kb7 {[%clk 0:00:22]} 40. Rxc8 {[%clk 0:00:24]}  Kxc8 {[%clk 0:00:22]} 41. Ke2 {[%clk 0:00:24]}  f4 {[%clk 0:00:13]} 42. Kf3 {[%clk 0:00:24]}  f5 {[%clk 0:00:11]} 43. g4 {[%clk 0:00:20]}  fxg4+ {[%clk 0:00:00]} 44. Kxg4 {[%clk 0:00:21]} 1-0

[Event "November 21 Early 2023"]
[Site "https://www.chess.com"]
[Date "2023.11.21"]
[Round "6"]
[White "Liang, Awonder"]
[Black "Dubov, Daniil"]
[Result "0-1"]
[Board "3"]
[TimeControl "180+1"]
[WhiteFideId "2056437"]
[BlackFideId "24126055"]
[WhiteElo "2527"]
[BlackElo "2767"]
[WhiteTeam "USA"]
[BlackTeam "RUS"]
[WhiteClock "0:00:01"]
[BlackClock "0:00:19"]

1. e4 {[%clk 0:03:00]}  c5 {[%clk 0:02:59]} 2. Nf3 {[%clk 0:03:00]}  Nc6 {[%clk 0:02:59]} 3. Bb5 {[%clk 0:03:00]}  e5 {[%clk 0:02:59]} 4. O-O {[%clk 0:03:00]}  Nge7 {[%clk 0:02:58]} 5. Nc3 {[%clk 0:03:00]}  g6 {[%clk 0:02:56]} 6. a4 {[%clk 0:02:59]}  Bg7 {[%clk 0:02:56]} 7. d3 {[%clk 0:02:59]}  d6 {[%clk 0:02:53]} 8. h3 {[%clk 0:02:57]}  O-O {[%clk 0:02:52]} 9. Bc4 {[%clk 0:02:56]}  h6 {[%clk 0:02:51]} 10. Nd5 {[%clk 0:02:45]}  Be6 {[%clk 0:02:38]} 11. c3 {[%clk 0:02:41]}  Rc8 {[%clk 0:02:32]} 12. Be3 {[%clk 0:02:38]}  Bxd5 {[%clk 0:02:28]} 13. exd5 {[%clk 0:02:36]}  Nb8 {[%clk 0:02:28]} 14. b4 {[%clk 0:02:36]}  Nd7 {[%clk 0:02:25]} 15. Rb1 {[%clk 0:02:36]}  cxb4 {[%clk 0:02:19]} 16. Rxb4 {[%clk 0:02:33]}  b6 {[%clk 0:02:15]} 17. a5 {[%clk 0:02:33]}  bxa5 {[%clk 0:01:58]} 18. Rb7 {[%clk 0:02:34]}  e4 {[%clk 0:01:27]} 19. Qa4 {[%clk 0:01:18]}  Nf6 {[%clk 0:01:06]} 20. dxe4 {[%clk 0:01:10]}  Nxe4 {[%clk 0:01:05]} 21. Bd4 {[%clk 0:00:37]}  Nf5 {[%clk 0:00:54]} 22. Bd3 {[%clk 0:00:30]}  Nxd4 {[%clk 0:00:39]} 23. cxd4 {[%clk 0:00:31]}  Nc3 {[%clk 0:00:39]} 24. Qb3 {[%clk 0:00:19]}  a4 {[%clk 0:00:36]} 25. Qb4 {[%clk 0:00:19]}  Nxd5 {[%clk 0:00:35]} 26. Qxa4 {[%clk 0:00:18]}  Nf4 {[%clk 0:00:35]} 27. Bb5 {[%clk 0:00:16]}  Rc3 {[%clk 0:00:33]} 28. Qd1 {[%clk 0:00:03]}  Qc8 {[%clk 0:00:24]} 29. Ba6 {[%clk 0:00:02]}  Qc6 {[%clk 0:00:22]} 30. Rxa7 {[%clk 0:00:01]}  Qb6 {[%clk 0:00:19]} 31. Qd2 {[%clk 0:00:01]} 0-1